Cogmind - Beta 16 @@@ ROGUE MODE // 2025.11.08 @ 12:24:49 Player: RHAHI Result: Destroyed by RG-GYY(R) with Subdweller Beam Cannon Performance ------------- Evolutions (0) 0 Regions Visited (2) 400 Robots Destroyed (27) 135 Value Destroyed (731) 731 Prototype IDs (15) 300 Alien Tech Used (0) 0 Bonus (0) 0 TOTAL SCORE: 1566 Bonus ------- None Cogmind --------- Core Integrity 0/250 Matter 12/300 Energy 200/250 System Corruption 0% Temperature Cool (9) Movement Treading (320) Ox2 Location -10/Subcaves Parts ------- > --- POWER (1) -------- Ion Engine > --- PROPULSION (2) --- Light Treads Light Treads > --- UTILITY (2) ------ Huge Storage Unit Seismic Detector > --- WEAPON (2) ------- EM Pulse Gun Improved EM Shotgun > --- INVENTORY (25) --- Light Ion Engine Light Ion Engine Light Treads Light Treads Light Treads Light Treads Light Treads Compact Wheel Hover Unit Medium Storage Unit High-capacity Storage Unit Sensor Array Signal Interpreter Improved Terrain Scanner Seismic Detector Transport Network Coupler Power Bank Improved EM Shotgun Grenade Launcher Rocket Launcher Rocket Launcher Datajack Mining Laser Peak State ------------ > --- POWER ------------ Light Nuclear Core > --- PROPULSION ------- Wheel Compact Wheel > --- UTILITY ---------- Huge Storage Unit Seismic Detector > --- WEAPON ----------- Improved EM Shotgun Improved EM Shotgun > --- INVENTORY -------- Light Ion Engine Light Ion Engine Light Ion Engine Light Treads Light Treads Hover Unit High-capacity Storage Unit Sensor Array Signal Interpreter Improved Terrain Scanner Seismic Detector EM Pulse Gun Assault Rifle Grenade Launcher Rocket Launcher Rocket Launcher Datajack Mining Laser [Rating: 15] Favorites ----------- Power Light Nuclear Core Engine Light Ion Engine Power Core Light Nuclear Core Propulsion Light Treads Treads Light Treads Wheel Compact Wheel Utility Huge Storage Unit Device Seismic Detector Storage Huge Storage Unit Weapon Improved EM Shotgun Energy Gun Improved EM Shotgun Ballistic Gun Assault Rifle Launcher Rocket Launcher Special Weapon Mining Laser Build | -11 -10 -10 ------- Run | Yrd Mat Sub Slots Evolved . | . . . Power . | . . . Propulsion . | . . . Utility . | . . . Weapon . | . . . Parts Attached 24 | 8 10 6 Power 3 | 1 1 1 Engine 2 | 1 . 1 Core 1 | . 1 . Reactor . | . . . Propulsion 8 | 2 3 3 Treads 5 | . 3 2 Leg . | . . . Wheel 3 | 2 . 1 Hover . | . . . Flight . | . . . Utility 5 | 3 2 . Device 2 | 2 . . Storage 3 | 1 2 . Processor . | . . . Hackware . | . . . Protection . | . . . Artifact . | . . . Weapon 8 | 2 4 2 Energy Gun 4 | 1 3 . Energy Cannon . | . . . Ballistic Gun 1 | 1 . . Ballistic Cannon . | . . . Launcher 2 | . . 2 Special Weapon 1 | . 1 . Impact Weapon . | . . . Slashing Weapon . | . . . Piercing Weapon . | . . . Special Melee Weapon . | . . . Unidentified Prototypes 1 | . 1 . Parts Lost 5 | . 2 3 Power 1 | . . 1 Propulsion 2 | . 1 1 Utility . | . . . Weapon 2 | . 1 1 Highest Loss Streak 1 | . 1 1 To Critical Strikes . | . . . Average Backups 20 | 3 19 24 Power 2 | . 2 2 Propulsion 5 | 1 4 7 Utility 5 | . 4 7 Weapon 5 | . 6 6 Tool/Special . | . . . Unused Backups 13 | . . 13 Power 2 | . . 2 Propulsion 3 | . . 3 Utility 6 | . . 6 Weapon 1 | . . 1 Tool/Special 1 | . . 1 Average Slot Usage (%) 99 | . 100 99 Engine 1 | . 1 . Core 12 | . 12 13 Treads 10 | . 8 14 Wheel 17 | . 19 13 Device 12 | . 12 14 Storage 15 | . 15 14 Energy Gun 18 | . 21 12 Special Weapon 7 | . 6 12 Peak Build Rating 15 | 9 15 15 Average Rating 13 | 5 13 13 On Entrance 7 | . 9 14 Avg Prop Armor Cover (%) 11 | . 11 11 Naked Turns . | . . . Heaviest Build 131 | 9 131 94 Greatest Support 40 | 26 40 40 Greatest Overweight (x) 13 | . 13 8 Average Overweight (x) 4 | . 4 6 Largest Inventory Capacity 25 | 8 25 25 Average Capacity 24 | 5 24 25 Most Carried 25 | 5 25 25 Average Carried 20 | 3 19 24 Final Capacity 25 | 5 25 25 Final Carried 25 | 5 25 23 Class Distribution -------------------- 100% | Mutant Dominant Class ---------------- Mutant | -10/Materials Mutant | -10/Subcaves Resources | -11 -10 -10 ----------- Run | Yrd Mat Sub Matter Collected 541 | 260 281 . Remotely . | . . . Salvage Created 881 | 15 765 101 Parts 57 | 4 49 4 Haulers Intercepted 2 | . 2 . Recyclers Shooed 1 | 1 . . Parts Field Recycled . | . . . Retrieved Matter . | . . . Parts Self-Destructed . | . . . Prevented . | . . . Parts Restored . | . . . Kills | -11 -10 -10 ------- Run | Yrd Mat Sub Combat Hostiles Destroyed 19 | . 14 5 Guns 12 | . 12 . AOE 7 | . 2 5 Classes Destroyed 7 | 1 5 1 Tunneler 1 | 1 . . Hauler 2 | . 2 . Operator 2 | . 2 . Watcher 3 | . 3 . Swarmer 3 | . 3 . Grunt 11 | . 11 . Subdweller 5 | . . 5 Best Kill Streak 5 | 1 5 5 Combat Bots Only 5 | . 5 5 Max Kills in Single Turn 3 | 1 3 2 Gunslinging . | . . . Exploded 2 | . 2 2 Melee . | . . . Uniques/NPCs Destroyed . | . . . Combat | -11 -10 -10 -------- Run | Yrd Mat Sub Hostile Shots Fired 82 | . 49 33 Missed 26 | . 14 12 Hits 56 | . 35 21 Projectile 56 | . 35 21 Damage Taken 1046 | . 436 610 Core 259 | . 118 141 Absorbed by Shields . | . . . Regen/Repaired (Parts) 22 | . 22 . Core Remaining (%) 100 | 100 . . Volleys Fired 107 | 4 72 31 Largest 2 | 1 2 2 Hottest 140 | 20 140 100 Shots Fired 158 | 4 112 42 Gun 89 | 4 83 2 Cannon . | . . . Launcher 20 | . . 20 Special 49 | . 29 20 Kinetic 12 | 4 8 . Thermal 49 | . 29 20 Explosive 20 | . . 20 Electromagnetic 77 | . 75 2 Robot Hit Streak 10 | 3 10 7 Robot Miss Streak 6 | 1 6 1 Penetration Max . | . . . Secondary Targets 1 | . 1 . Max Gunslinging Chain 1 | . 1 . Shots Hit Robots 76 | 3 59 14 Core Hits 46 | 1 34 11 Critical Kills . | . . . Critical Parts Destroyed . | . . . Critical Strikes . | . . . Melee Attacks . | . . . Impact . | . . . Slashing . | . . . Piercing . | . . . Sneak Attacks . | . . . Combat Hostiles . | . . . Follow-up Attacks . | . . . Damage Inflicted 2248 | 38 1265 945 Guns 1057 | 38 990 29 Cannons . | . . . Explosions 1149 | . 249 900 Melee . | . . . Ramming 16 | . . 16 Kinetic 79 | 38 41 . Thermal 275 | . 275 . Explosive 900 | . . 900 Electromagnetic 978 | . 949 29 Impact . | . . . Slashing . | . . . Piercing . | . . . Highest Corruption . | . . . Average Corruption . | . . . Corruption Purged . | . . . Corruption Blocked . | . . . Overload Shots . | . . . Overflow Damage 4 | . 4 . Projectiles . | . . . Explosions 4 | . 4 . Melee . | . . . Knockbacks 3 | . . 3 Impact 3 | . . 3 Kinetic . | . . . Secondary . | . . . Self-Inflicted Damage 59 | . 38 21 Shots 3 | . 2 1 Rammed 8 | . . 8 Targets Rammed 8 | . . 8 Kicked . | . . . Crushed . | . . . Highest Temperature 318 | . 318 . Average Temperature 62 | . 62 . Received Heat Transfer 342 | . 201 141 Siege Activations . | . . . Martial Activations . | . . . Shielding Activations . | . . . Robots Disrupted . | . . . Combat Hostiles . | . . . Robots Corrupted . | . . . Combat Hostiles . | . . . Parts Fried 2 | . 2 . Impact Corruptions . | . . . Robots Melted . | . . . Combat Hostiles . | . . . Parts Melted . | . . . Heat Transferred 300 | . 300 . Parts Sabotaged . | . . . Parts Stolen . | . . . Parts Stripped . | . . . Power Chain Reactions 5 | . 5 . Alert | -11 -10 -10 ------- Run | Yrd Mat Sub Maximum Alert Level . | . . . Low Security (%) 100 | 100 100 . Level 1 . | . . . Level 2 . | . . . Level 3 . | . . . Level 4 . | . . . Level 5 . | . . . High Security . | . . . Max Security . | . . . Peak Influence 135 | 5 135 . Initial . | . . . Average 32 | . 34 . Influence Increases 496 | 5 491 . Destroy 0b10 Robot/C 280 | . 280 . Destroy 0b10 Robot/NC 40 | 5 35 . Destroy Leader 70 | . 70 . Successful Hack 47 | . 47 . Disable Machine 15 | . 15 . Destroy Structure 29 | . 29 . Lose Combat Pursuer 15 | . 15 . Influence Decreases 496 | 5 455 36 Entered New Map 18 | . . 18 Time Decay 478 | 5 455 18 Squads Dispatched 3 | . 3 . Investigation 3 | . 3 . Extermination . | . . . Reinforcement . | . . . Assault . | . . . Garrison . | . . . Intercept . | . . . Searches Triggered . | . . . Construction Impeded . | . . . Haulers Reinforced . | . . . Active Scanning Responses . | . . . Cargo Convoy Interrupts . | . . . Stealth | -11 -10 -10 --------- Run | Yrd Mat Sub Distress Signals . | . . . Communications Jammed . | . . . Distress Signals . | . . . Times Spotted 32 | . 25 7 Peak Tracking Total 5 | . 5 4 Tactical Retreats 1 | . 1 . Traps | -11 -10 -10 ------- Run | Yrd Mat Sub Traps Triggered 1 | . . 1 Indirectly . | . . . Trap Hack Attempts . | . . . Triggered . | . . . Disarmed . | . . . Reprogrammed . | . . . Reused . | . . . Traps Extracted . | . . . Installed . | . . . Triggered . | . . . Machines | -11 -10 -10 ---------- Run | Yrd Mat Sub Machines Disabled 2 | . 1 1 Max in Single Turn 1 | . 1 1 Machines Repaired . | . . . Machines Dismantled . | . . . Machines Sabotaged . | . . . Overloaded Fab Kills . | . . . Hacking | -11 -10 -10 --------- Run | Yrd Mat Sub Machines Accessed 10 | . 9 1 Terminals 7 | . 7 . Fabricators . | . . . Repair Stations 1 | . 1 . Recycling Units 1 | . 1 . Scanalyzers . | . . . Garrison Access . | . . . Total Hacks 37 | . 28 9 Successful 22 | . 13 9 Failed 15 | . 15 . Catastrophic 3 | . 3 . Database Lockouts . | . . . Manual 19 | . 19 . Terminals 23 | . 23 . Fabricators . | . . . Repair Stations 3 | . 3 . Recycling Units 2 | . 2 . Scanalyzers . | . . . Garrison Access . | . . . Terminal Hacks 12 | . 3 9 Record 8 | . . 8 Robot Analysis 1 | . 1 . Prototype ID Bank 1 | . 1 . Branch Access Points 1 | . 1 . Proto ID Catalog 1 | . . 1 Fabricator Hacks . | . . . Repair Station Hacks 2 | . 2 . Scan Component 1 | . 1 . Repair 1 | . 1 . Recycling Unit Hacks . | . . . Scanalyzer . | . . . Garrison Access Hacks . | . . . Unauthorized Hacks 8 | . 8 . Terminals 7 | . 7 . Botnet 1 | . 1 . Skim 6 | . 6 . Fabricators . | . . . Repair Stations . | . . . Recycling Units 1 | . 1 . Recyclers 1 | . 1 . Scanalyzers . | . . . Garrison Access . | . . . Data Cores Recovered 1 | . 1 . Used . | . . . Hacking Detections 8 | . 8 . Full Trace Events 3 | . 3 . Feedback Events . | . . . Feedback Blocked . | . . . Robot Schematics Acquired . | . . . Robots Built . | . . . Authchips . | . . . Time . | . . . Total Robot Build Rating . | . . . Part Schematics Acquired . | . . . Parts Built . | . . . Authchips . | . . . Time . | . . . Total Part Build Rating . | . . . Part Studies Acquired . | . . . Parts Repaired 1 | . 1 . Time 51 | . 51 . Parts Recycled . | . . . Recycled Matter . | . . . Retrieved Matter . | . . . Retrieved Components . | . . . Parts Scanalyzed . | . . . Part Schematics Acquired . | . . . Parts Damaged . | . . . Bothacking | -11 -10 -10 ------------ Run | Yrd Mat Sub Used RIF Installer . | . . . Robots Hacked . | . . . Non-combat . | . . . Combat . | . . . Robot Hacks Applied . | . . . Relay Couplers Released . | . . . Fabnet Peak Effective % . | . . . Robots Rewired . | . . . Allies Hacked . | . . . Hacks Repelled . | . . . Allies | -11 -10 -10 -------- Run | Yrd Mat Sub Total Allies . | . . . Largest Group . | . . . Highest-Rated Group . | . . . Highest-Rated Ally . | . . . Total Orders . | . . . Ally Attacks . | . . . Total Damage . | . . . Kills . | . . . Allies Corrupted . | . . . Allies Melted . | . . . Intel | -11 -10 -10 ------- Run | Yrd Mat Sub Active Infowar (turns) 2586 | 27 1731 828 Terrain 38 | 23 15 . Seismic 2586 | 27 1731 828 Robot Analysis Total 1 | . 1 . Derelict Logs Recovered . | . . . Drone Launches . | . . . Drone Recoveries . | . . . Exploration | -11 -10 -10 ------------- Run | Yrd Mat Sub Turns Passed 2868 | 80 1960 828 Spaces Moved 1240 | 61 926 253 Core 1 | 1 . . Treads 3 | . 2 1 Legs . | . . . Wheels 1236 | 60 924 252 Hover . | . . . Flight . | . . . Fastest Speed 50 | 50 90 175 Average Speed 161 | 88 160 184 Slowest Speed 320 | 90 320 320 Overloaded Moves . | . . . Propulsion Burnouts . | . . . Robots Hopped . | . . . Potential Cave-ins . | . . . Cave-ins Triggered . | . . . Exploration Rate (%) 39 | 3 96 20 Regions Visited 2 Branch Regions 1 Pre-discovered Areas . | . . . Known Exits Taken . | . . . Unknown Exits Taken 2 | 1 1 . Scrap Searched . | . . . Spaces Dug 45 | . 23 22 Terrain Destroyed 112 | . 30 82 Melee . | . . . Projectile 23 | . 23 . AOE 89 | . 7 82 Terrain Rammed . | . . . Walls Destroyed . | . . . Machines Disabled . | . . . Actions | -11 -10 -10 --------- Run | Yrd Mat Sub Total 1812 | 79 1222 511 Wait 385 | . 177 208 Move 1238 | 60 925 253 Hop . | . . . Pick Up 26 | 5 20 1 Fast Attach 11 | 8 3 . Attach 5 | . 2 3 Detach 3 | 1 2 . Swap 26 | . 19 7 Drop 3 | 1 2 . Fire 107 | 4 72 31 Melee . | . . . Ram . | . . . Kick . | . . . Crush 8 | . . 8 Escape Stasis . | . . . Rewire . | . . . Trap . | . . . Miscellaneous . | . . . Route ------- -11/Scrapyard -10/Materials (discovered 6 exits: [*Mat x3] / *Min x2 / *Sub) -10/Subcaves (discovered 1 exit: [*Scr]) History --------- Turn | Location | Event 10 | -11/Scrapyard | Discovered new exit (range 15) 81 | -11/Scrapyard | Entered Materials 204 | -10/Materials | Discovered new exit (range 15) 247 | -10/Materials | Discovered new exit (range 16) 248 | -10/Materials | Identified exit to Mines 308 | -10/Materials | Build established: Mutant 731 | -10/Materials | Repaired Imp. EM Shotgun 802 | -10/Materials | Discovered new exit (range 9) 1249 | -10/Materials | Discovered new exit (range 7) 2041 | -10/Materials | Entered Subcaves 2042 | -10/Subcaves | Approached by a straggling Scientist 2057 | -10/Subcaves | Shifting Twisted Machinery released Piercing Trap 2057 | -10/Subcaves | Shifting Twisted Machinery released Sub. Laser 2194 | -10/Subcaves | Scientist uncovered a shortcut to Scraptown 2303 | -10/Subcaves | Core integrity fell below 50% 2669 | -10/Subcaves | Visited 4L-MR0's lab 2698 | -10/Subcaves | Found Power Bank 2860 | -10/Subcaves | Core integrity fell below 20% 2869 | -10/Subcaves | Destroyed by RG-GYY(R) with Subdweller Beam Cannon Last Messages --------------- 02829_ The unstable cave ceiling collapses. 02829_ Q5-9MO(R) destroyed. 02831_ The unstable cave ceiling collapses. 02833_ RG-GYY(R): "THANKSYOU!" 02833_ The unstable cave ceiling collapses. 02839_ Slammed into RG-GYY(R). 02842_ The unstable cave ceiling collapses. 02842_ Slammed into RG-GYY(R). 02842_ RG-GYY(R) knocked back. 02845_ Slammed into RG-GYY(R). 02849_ RG-GYY(R) knocked back. 02851_ The unstable cave ceiling collapses. 02852_ Slammed into RG-GYY(R). 02856_ The unstable cave ceiling collapses. 02858_ Slammed into RG-GYY(R). 02858_ RG-GYY(R) knocked back. 02859_ Assault Rifle destroyed. 02861_ The unstable cave ceiling collapses. 02861_ Slammed into RG-GYY(R). 02865_ The unstable cave ceiling collapses. Map ----- +----------------------------------------------------+ | ???????????????????????????????# """##"" #???? | | ???????????????????????????????#"""""# ###???? | | ???????????????????????????????#"" ""+ "X"""#???? | | ???????????????????????????????#"""" #"""""""#???? | | ???????????????????????????????#"" ##########???? | | ???????????????????????????????#""" ##???????????? | | ???????????????????????????????#" " ######??????? | | ???????????????????????????????## " # #??????? | | ????????????????????????????????#" ##??????? | | ????????????????????????????????## ^ ## #??????? | | ???????????????????????????????#######" ###????? | | ??????????????????????????????## ### " ####?? | | ?????????????????????????????## ### | | ?????????????????????????????# ####### ## # | | ?????????????????????????????# #???# | | ?????????????????????????????## ##??# | | ??????????????????????????????# ##?# ## | | ?????????????????????????????## #?# #? | | ?????????????????????????????# ##?# # | | ?????????????????????????????# ### ## | | ?????????????????????????????## ### | | ?????????? ???########?###????## #? | | ??????????" ## # ## ######## #? | | ???????? # #;## ## #? | | ?????????? # # #### | | ???????# # ## @ ##??# ? | | ???????# # # R # ####???# ? | | ????????# = #### ##??????? ? # | | ????????# # #???????????? ? | | ???????? &# # # ### #???????????? ? | | ???????? % # ### ##??????????????? | | ????????? #### ###????????????? | | ????????? # ##;### #????????????? | | ?????????## # ###?## #????????????? | | ?????????? ?### ????# #######????????????? | | ??????????# ????#?????# ##??????????????????? | | ??????????????????????# #????????????????????? | | ??????????????????????######?????????????????????? | | ?????????????????????????????????????????????????? | | ?????????????????????????????????????????????????# | | ?????????????????????????????????????????????????# | | ????????????????????????????????????????????????## | | ?????????????????????????????????????????????#### | | ?????????????????????????????????????????????# | | ?????????????????????????????????????????????# ^ | | ?????????????????????????????????????????????# | | ?????????????????????????????????????????????## # | | ??????????????????????????????????????????????## ? | | ??????????????????????????????????????????????## # | | ??????????????????????????????????????????????# | +----------------------------------------------------+ Best States ------------- Heat Dissipation 25 Energy Generation 14 Energy Capacity 250 Matter Stores 300 Matter Capacity 300 Sight Range 16 Terrain Scan Range 16 Terrain Scan Density 10 Evasion (%) 42 Recoil Reduction 2 Item Schematics ----------------- None Robot Schematics ------------------ None Fabricated ------------ Nothing Repaired ---------- Imp. EM Shotgun | 68% | -10/Materials Studied --------- None Alien Tech Used ----------------- None Achievements -------------- Nice Directions, Buddy Challenges ------------ None Game ------ Seed VampiricAccelerationJets Manual? 0 Play Time 00:35:50 Cumulative 61.3 hours Start 2025.11.08 @ 00:49:48 End 2025.11.08 @ 12:24:49 Sessions 3 Manual Loads 0 Difficulty Rogue Special Mode None Game No. 22 Rogue 21 Adventurer 1 Explorer 0 Win Type - Total 2 Types 1/0/1/0/0/0/0/0/0/0 Lore% 27 Gallery% 35 Achievement% 30 Wizard Run 0 Options --------- Layout 2 ASCII 0 Keyboard 1 Movement Vi Keybinds 1 Fullscreen 2 Font 32/Terminus Map View 50x44 Zoom Use 0% Tactical HUD 1 Map Filters NONE Filters NONE Steam 1 RUN: 4c256245-e089-48ea-8f6d-e61b53394de7